[Event "18th Delhi GM Open 2020"]
[Site "Delhi"]
[Date "2020.01.12"]
[Round "6.24"]
[White "Ziatdinov, Raset"]
[Black "Yudin, Sergei"]
[Result "0-1"]
[ECO "C41"]
[WhiteElo "2203"]
[BlackElo "2508"]
[Annotator "ChessBase"]
[PlyCount "82"]
[EventDate "2020.01.09"]
[EventType "swiss"]
[EventCountry "IND"]
[SourceTitle "playchess.com"]
[Source "ChessBase"]
[SourceQuality "1"]
[TimeControl "5400+30"]

1. e4 {[%emt 0:00:00]} d6 {[%emt 0:00:00]} 2. d4 {[%emt 0:00:00]} Nf6 {[%emt 0:00:00]} 3. Nc3 {[%emt 0:00:00]} e5 {[%emt 0:00:00]} 4. Nf3 {[%emt 0:00:00]} Nbd7 {[%emt 0:00:00]} 5. Be2 {[%emt 0:00:16]} Be7 {[%emt 0:00:00]} 6. O-O {[%emt 0:00:05]} O-O {[%emt 0:00:00]} 7. Re1 {[%emt 0:00:32]} c6 {[%emt 0:00:06]} 8. a4 {[%emt 0:00:20]} Re8 {[%emt 0:00:06]} 9. a5 {[%emt 0:01:17]} exd4 {[%emt 0:00:40]} 10. Qxd4 {[%emt 0:00:27]} Bf8 {[%emt 0:00:11]} 11. Bg5 {[%emt 0:02:26]} Nc5 {[%emt 0:02:28]} 12. Bc4 {[%emt 0:07:04]} Be6 {[%emt 0:04:17]} 13. b4 {[%emt 0:10:19]} Ncd7 {[%emt 0:00:23]} 14. Bxe6 {[%emt 0:03:30]} Rxe6 {[%emt 0:01:22]} 15. Qd2 {[%emt 0:05:38]} h6 {[%emt 0:03:04]} 16. Bxf6 {[%emt 0:02:37]} Nxf6 {[%emt 0:01:58]} 17. Nd4 {[%emt 0:05:58]} Re8 {[%emt 0:02:56]} 18. a6 {[%emt 0:04:11]} Qc8 {[%emt 0:01:33]} 19. axb7 {[%emt 0:06:07]} Qxb7 {[%emt 0:00:14]} 20. Qd3 {[%emt 0:00:09]} c5 {[%emt 0:09:54]} 21. bxc5 {[%emt 0:00:38]} dxc5 {[%emt 0:00:05]} 22. Qb5 {[%emt 0:05:20]} Qb6 {[%emt 0:02:46]} 23. Qxb6 {[%emt 0:10:52]} axb6 {[%emt 0:00:40]} 24. Rxa8 {[%emt 0:00:02]} Rxa8 {[%emt 0:00:07]} 25. Ndb5 {[%emt 0:00:06]} c4 {[%emt 0:01:09]} 26. e5 {[%emt 0:00:29]} Nd7 {[%emt 0:00:11]} 27. f4 {[%emt 0:00:15]} Bb4 {[%emt 0:02:02]} 28. Rd1 {[%emt 0:03:00]} Nf8 {[%emt 0:00:37]} 29. f5 {[%emt 0:04:09]} g6 {[%emt 0:01:44]} 30. g4 {[%emt 0:00:14]} h5 {[%emt 0:00:16]} 31. h3 {[%emt 0:01:44]} Ra6 {[%emt 0:00:33]} 32. Rd5 {[%emt 0:02:40]} Ra1+ {[%emt 0:00:21]} 33. Nd1 {[%emt 0:01:12]} Rc1 {[%emt 0:01:03]} 34. c3 {[%emt 0:01:12]} Bc5+ {[%emt 0:00:05]} 35. Kf1 {[%emt 0:02:14]} Rc2 {[%emt 0:00:56]} 36. Nc7 {[%emt 0:02:59]} gxf5 {[%emt 0:03:49]} 37. gxf5 {[%emt 0:00:07]} Rh2 {[%emt 0:00:20]} 38. e6 {[%emt 0:00:19]} fxe6 {[%emt 0:00:08]} 39. fxe6 {[%emt 0:00:03]} Ng6 {[%emt 0:00:18]} 40. Rxh5 {[%emt 0:01:24]} Rh1+ {[%emt 0:01:09]} 41. Kg2 {[%emt 0:00:58]} Rxd1 {[%emt 0:00:12]} 0-1

[Event "18th Delhi GM Open 2020"]
[Site "Delhi"]
[Date "2020.01.12"]
[Round "6.26"]
[White "Rios, Cristhian Camilo"]
[Black "Aradhya, Garg"]
[Result "1-0"]
[ECO "D35"]
[WhiteElo "2498"]
[BlackElo "2197"]
[Annotator "ChessBase"]
[PlyCount "55"]
[EventDate "2020.01.09"]
[EventType "swiss"]
[EventCountry "IND"]
[SourceTitle "playchess.com"]
[Source "ChessBase"]
[SourceQuality "1"]
[TimeControl "5400+30"]

1. d4 {[%emt 0:00:00]} d5 {[%emt 0:00:00]} 2. c4 {[%emt 0:00:00]} e6 {[%emt 0:00:00]} 3. Nc3 {[%emt 0:00:00]} Nf6 {[%emt 0:00:00]} 4. cxd5 {[%emt 0:00:04]} exd5 {[%emt 0:00:00]} 5. Bg5 {[%emt 0:00:07]} c6 {[%emt 0:06:33]} 6. e3 {[%emt 0:00:08]} h6 {[%emt 0:00:04]} 7. Bh4 {[%emt 0:00:09]} Bd6 {[%emt 0:02:14]} 8. Bd3 {[%emt 0:01:28]} O-O {[%emt 0:01:13]} 9. Nf3 {[%emt 0:00:55]} Be6 {[%emt 0:00:34]} 10. Ne5 {[%emt 0:02:01]} c5 {[%emt 0:05:54]} 11. f4 {[%emt 0:00:08]} Nc6 {[%emt 0:05:04]} 12. Bc2 {[%emt 0:14:33]} cxd4 {[%emt 0:08:33]} 13. exd4 {[%emt 0:00:12]} Rc8 {[%emt 0:11:38]} 14. Nxc6 {[%emt 0:08:56]} bxc6 {[%emt 0:04:00]} 15. O-O {[%emt 0:02:52]} c5 {[%emt 0:06:45]} 16. f5 {[%emt 0:02:22]} cxd4 {[%emt 0:00:54]} 17. fxe6 {[%emt 0:00:11]} fxe6 {[%emt 0:01:30]} 18. Nb5 {[%emt 0:26:18]} e5 {[%emt 0:02:56]} 19. Bb3 {[%emt 0:04:19]} Be7 {[%emt 0:11:14]} 20. Rc1 {[%emt 0:03:58]} g5 {[%emt 0:05:59]} 21. Bg3 {[%emt 0:00:42]} Qb6 {[%emt 0:02:20]} 22. Rxc8 {[%emt 0:00:41]} Rxc8 {[%emt 0:00:06]} 23. Bxe5 {[%emt 0:00:43]} d3+ {[%emt 0:01:36]} 24. Nd4 {[%emt 0:00:12]} Qa6 {[%emt 0:00:39]} 25. Nf5 {[%emt 0:00:41]} Bc5+ {[%emt 0:00:52]} 26. Kh1 {[%emt 0:00:08]} Kh7 {[%emt 0:00:20]} 27. Bxf6 {[%emt 0:01:04]} Qxf6 {[%emt 0:00:06]} 28. Qxd3 {[%emt 0:00:05]} 1-0

[Event "18th Delhi GM Open 2020"]
[Site "Delhi"]
[Date "2020.01.16"]
[Round "10.15"]
[White "Rios, Cristhian Camilo"]
[Black "Jain Kashish Manoj"]
[Result "1-0"]
[ECO "E70"]
[WhiteElo "2498"]
[BlackElo "1962"]
[Annotator "RC"]
[PlyCount "71"]
[EventDate "2020.01.09"]
[EventType "swiss"]
[EventCountry "IND"]
[SourceTitle "playchess.com"]
[Source "ChessBase"]
[SourceQuality "1"]
[TimeControl "5400+30"]

1. d4 {[%emt 0:03:11]} Nf6 {[%emt 0:00:00]} 2. c4 {[%emt 0:00:11]} g6 {[%emt 0:00:00]} 3. Nc3 {[%emt 0:00:05]} Bg7 {[%emt 0:00:00]} 4. e4 {[%emt 0:00:07]} d6 {[%emt 0:00:07]} 5. Bg5 {[%emt 0:00:06]} O-O {[%emt 0:00:22]} 6. f3 {[%emt 0:00:07]} c6 {[%emt 0:00:37]} 7. Qd2 {[%emt 0:00:06]} a6 {[%emt 0:03:53]} 8. Bd3 {[%emt 0:00:58]} b5 {[%emt 0:04:19]} 9. Nge2 {[%emt 0:00:07]} Nbd7 {[%emt 0:07:10]} 10. O-O {[%emt 0:03:47]} e5 {[%emt 0:04:56]} 11. d5 {[%emt 0:00:32]} b4 {[%emt 0:08:45]} 12. Na4 {[%emt 0:00:58]} cxd5 {[%emt 0:15:34]} 13. cxd5 {[%emt 0:00:23]} Qa5 {[%emt 0:17:49]} 14. a3 {[%emt 0:11:27]} Rb8 {[%emt 0:03:49]} 15. axb4 {[%emt 0:02:08]} Qxb4 {[%emt 0:00:36]} 16. Qxb4 {[%emt 0:01:06]} Rxb4 {[%emt 0:00:02]} 17. Bd2 {[%emt 0:00:55]} Rb8 {[%emt 0:01:27]} 18. Rfc1 {[%emt 0:03:39]} Nb6 {[%emt 0:07:50]} 19. b4 {[%emt 0:04:22]} Nfd7 {[%emt 0:06:17]} 20. Nxb6 {[%emt 0:01:10]} Rxb6 {[%emt 0:00:09]} 21. Rc7 {[%emt 0:10:19]} Nb8 {[%emt 0:02:51]} 22. Nc1 {[%emt 0:00:41]} Rb7 {[%emt 0:10:15]} 23. Rxb7 {[%emt 0:00:41]} Bxb7 {[%emt 0:00:01]} 24. Nb3 {[%emt 0:00:14]} Rc8 {[%emt 0:00:28]} 25. Ra2 {[%emt 0:04:19]} Bf8 {[%emt 0:04:24]} 26. Kf1 {[%emt 0:03:14]} Rc7 {[%emt 0:00:30]} 27. b5 {[%emt 0:02:38]} axb5 {[%emt 0:00:39]} 28. Ra7 {[%emt 0:00:07]} Re7 {[%emt 0:00:37]} 29. Na5 {[%emt 0:00:23]} Ba6 {[%emt 0:00:28]} 30. Ra8 {[%emt 0:09:33]} Re8 {[%emt 0:00:00]} 31. Ke1 {[%emt 0:02:42]} f6 {[%emt 0:01:01]} 32. Be3 {[%emt 0:02:23]} Kf7 {[%emt 0:00:27]} 33. Bb6 {[%emt 0:00:56]} Rc8 {[%emt 0:00:27]} 34. Ra7+ {[%emt 0:00:06]} Ke8 {[%emt 0:00:27]} 35. Nc6 {[%emt 0:00:39]} Nxc6 {[%emt 0:00:34]} 36. dxc6 {[%emt 0:00:08]} 1-0

[Event "18th Delhi GM Open 2020"]
[Site "Delhi"]
[Date "2020.01.16"]
[Round "10.17"]
[White "Goganov, Aleksey"]
[Black "Sammed Jaykumar, Shete"]
[Result "1-0"]
[ECO "E06"]
[WhiteElo "2583"]
[BlackElo "2398"]
[Annotator "RC"]
[PlyCount "61"]
[EventDate "2020.01.09"]
[EventType "swiss"]
[EventCountry "IND"]
[SourceTitle "playchess.com"]
[Source "ChessBase"]
[SourceQuality "1"]
[TimeControl "5400+30"]

1. d4 {[%emt 0:00:00]} Nf6 {[%emt 0:00:00]} 2. c4 {[%emt 0:00:00]} e6 {[%emt 0:00:00]} 3. Nf3 {[%emt 0:00:00]} d5 {[%emt 0:00:00]} 4. g3 {[%emt 0:00:00]} Be7 {[%emt 0:00:00]} 5. Bg2 {[%emt 0:00:00]} O-O {[%emt 0:00:00]} 6. O-O {[%emt 0:00:00]} dxc4 {[%emt 0:00:03]} 7. Qc2 {[%emt 0:00:11]} b5 {[%emt 0:00:13]} 8. a4 {[%emt 0:00:05]} b4 {[%emt 0:00:03]} 9. Nfd2 {[%emt 0:00:31]} Nd5 {[%emt 0:03:50]} 10. Nxc4 {[%emt 0:00:26]} Ba6 {[%emt 0:01:50]} 11. Rd1 {[%emt 0:08:46]} Qc8 {[%emt 0:18:47]} 12. e4 {[%emt 0:06:31]} Nb6 {[%emt 0:00:30]} 13. Na5 {[%emt 0:03:27]} c5 {[%emt 0:07:34]} 14. d5 {[%emt 0:02:12]} c4 {[%emt 0:15:10]} 15. Be3 {[%emt 0:19:50]} Bc5 {[%emt 0:05:01]} 16. Nc6 {[%emt 0:00:56]} Nxc6 {[%emt 0:05:06]} 17. Bxc5 {[%emt 0:00:21]} Ne5 {[%emt 0:00:29]} 18. Bxb4 {[%emt 0:07:59]} Re8 {[%emt 0:05:44]} 19. dxe6 {[%emt 0:07:02]} Rxe6 {[%emt 0:07:10]} 20. a5 {[%emt 0:02:30]} Nd3 {[%emt 0:01:23]} 21. Ba3 {[%emt 0:02:56]} Nd7 {[%emt 0:00:53]} 22. Nc3 {[%emt 0:00:30]} Qe8 {[%emt 0:05:31]} 23. Nd5 {[%emt 0:01:10]} Rc8 {[%emt 0:00:05]} 24. Qc3 {[%emt 0:09:16]} Rxe4 {[%emt 0:05:01]} 25. Nb4 {[%emt 0:11:01]} Nxf2 {[%emt 0:05:57]} 26. Kxf2 {[%emt 0:02:28]} Re2+ {[%emt 0:00:09]} 27. Kf1 {[%emt 0:01:58]} Rc5 {[%emt 0:06:08]} 28. Nd5 {[%emt 0:09:36]} Rxg2 {[%emt 0:03:10]} 29. Re1 {[%emt 0:01:17]} Qa8 {[%emt 0:00:06]} 30. Bxc5 {[%emt 0:00:16]} Nxc5 {[%emt 0:00:29]} 31. Nc7 {[%emt 0:02:09]} 1-0

[Event "18th Delhi GM Open 2020"]
[Site "Delhi"]
[Date "2020.01.16"]
[Round "10.22"]
[White "Vasquez Schroeder, Rodrigo"]
[Black "Srihari L R"]
[Result "0-1"]
[ECO "A41"]
[WhiteElo "2487"]
[BlackElo "2302"]
[Annotator "RC"]
[PlyCount "82"]
[EventDate "2020.01.09"]
[EventType "swiss"]
[EventCountry "IND"]
[SourceTitle "playchess.com"]
[Source "ChessBase"]
[SourceQuality "1"]
[TimeControl "5400+30"]

1. d4 {[%emt 0:02:51]} d6 {[%emt 0:00:00]} 2. Nf3 {[%emt 0:00:17]} g6 {[%emt 0:00:00]} 3. c4 {[%emt 0:00:29]} Bg7 {[%emt 0:00:08]} 4. Nc3 {[%emt 0:00:18]} Bg4 {[%emt 0:00:46]} 5. e3 {[%emt 0:00:16]} c5 {[%emt 0:05:26]} 6. Be2 {[%emt 0:03:56]} cxd4 {[%emt 0:00:26]} 7. Nxd4 {[%emt 0:01:09]} Bxe2 {[%emt 0:00:26]} 8. Ndxe2 {[%emt 0:00:01]} Nf6 {[%emt 0:00:45]} 9. O-O {[%emt 0:00:14]} O-O {[%emt 0:00:05]} 10. Rb1 {[%emt 0:00:16]} Nc6 {[%emt 0:00:48]} 11. e4 {[%emt 0:01:03]} a6 {[%emt 0:00:41]} 12. a4 {[%emt 0:00:12]} Rc8 {[%emt 0:18:30]} 13. b3 {[%emt 0:01:22]} Qa5 {[%emt 0:05:00]} 14. Bd2 {[%emt 0:02:39]} e6 {[%emt 0:04:21]} 15. Kh1 {[%emt 0:05:52]} Qc7 {[%emt 0:02:38]} 16. Bf4 Rfd8 {[%emt 0:00:53]} 17. Qd2 {[%emt 0:02:53]} Nb4 {[%emt 0:01:36]} 18. f3 {[%emt 0:04:33]} Qb6 {[%emt 0:03:13]} 19. Be3 {[%emt 0:07:32]} Qc7 {[%emt 0:01:03]} 20. Rbc1 {[%emt 0:01:40]} Qe7 {[%emt 0:13:21]} 21. Bg5 {[%emt 0:03:04]} Qf8 {[%emt 0:01:50]} 22. Nd1 {[%emt 0:05:19]} Nc6 {[%emt 0:09:15]} 23. Ne3 {[%emt 0:03:55]} h6 {[%emt 0:01:16]} 24. Bh4 {[%emt 0:00:06]} Ne5 {[%emt 0:02:45]} 25. Nc3 {[%emt 0:03:36]} g5 {[%emt 0:00:40]} 26. Bf2 {[%emt 0:00:43]} Nfd7 {[%emt 0:00:48]} 27. Rfd1 {[%emt 0:00:30]} Nc5 {[%emt 0:00:11]} 28. Qc2 {[%emt 0:01:38]} Nc6 {[%emt 0:00:16]} 29. Ne2 {[%emt 0:00:32]} b5 {[%emt 0:01:45]} 30. axb5 {[%emt 0:07:57]} axb5 {[%emt 0:00:07]} 31. b4 {[%emt 0:02:26]} Nxb4 {[%emt 0:00:52]} 32. Qb1 {[%emt 0:00:09]} bxc4 {[%emt 0:00:28]} 33. Rxc4 {[%emt 0:10:35]} Nc6 {[%emt 0:00:32]} 34. Bg3 {[%emt 0:03:22]} Rb8 {[%emt 0:02:44]} 35. Qc1 {[%emt 0:00:13]} Na5 {[%emt 0:00:27]} 36. Rc2 {[%emt 0:01:26]} Nab3 {[%emt 0:00:32]} 37. Qa3 {[%emt 0:00:18]} Rb5 {[%emt 0:01:39]} 38. Nc3 {[%emt 0:02:55]} Rb7 {[%emt 0:00:56]} 39. Nc4 {[%emt 0:05:47]} Ra8 {[%emt 0:01:32]} 40. Bxd6 {[%emt 0:01:06]} Qc8 {[%emt 0:01:08]} 41. Qb2 {[%emt 0:01:21]} Nd4 {[%emt 0:01:43]} 0-1